{"text_format":"3","workbook":"xlsx","n_sheets":7,"sheets":["Talmaskiner 1","Hjælp - Talmaskiner 1","Talmaskiner 2","Talmaskiner 3","Hjælp - Talmaskiner 3","Ekstra","ORDBOG"],"not_rendered":{"images":40,"defined_names":6},"read":"whole","date_system":"1900"}

{"sheet":"Talmaskiner 1","index":0,"n_rows":25,"n_cols":11,"rows_kept":25,"merged":[[5,1,5,3],[5,7,5,9],[16,1,16,3],[16,7,16,9]]}
[null,"Talmaskiner 1."]
[]
[null,null,0,null,"<-- Skriv et tal i C3.",{"$nulls":3},0,null,"<-- Skriv et tal i I3."]
[]
[null,null,"\"?\"",null,"Hvad sker der? Skriv formlen i F6.",{"$nulls":3},"\"?\"",null,"Hvad sker der? Skriv formlen i M6."]
[null,"maskine 1",null,null,"=C3+…",null,null,"maskine 2",null,null,"=I3…"]
[null,null,"\"?\"",{"$nulls":5},"\"?\""]
[null,null,"\"?\"",{"$nulls":5},"\"?\""]
[]
[null,null,{"$f":"C3+3","v":3},{"$nulls":5},{"$f":"I3-1","v":-1}]
[]
[]
[]
[null,null,0,null,"<-- Skriv et tal i C14.",{"$nulls":3},0,null,"<-- Skriv et tal i I14."]
[]
[null,null,"\"?\"",null,"Hvad sker der? Skriv formlen i F17.",{"$nulls":3},"\"?\"",null,"Hvad sker der? Skriv formlen i M17."]
[null,"maskine 3",null,null,"=C14…",null,null,"maskine 4",null,null,"=I14…"]
[null,null,"\"?\"",{"$nulls":5},"\"?\""]
[null,null,"\"?\"",{"$nulls":5},"\"?\""]
[]
[null,null,{"$f":"C14*3","v":0},{"$nulls":5},{"$f":"I14/4","v":0}]
[]
[]
[]
["SLUT"]

{"sheet":"Hjælp - Talmaskiner 1","index":1,"n_rows":25,"n_cols":12,"rows_kept":25,"merged":[[5,1,5,3],[5,7,5,9],[16,1,16,3],[16,7,16,9]]}
[null,"Hjælp - Talmaskiner 1."]
[]
[null,null,7,{"$nulls":5},7]
[]
[null,null,"\"?\"",null,"Hvad sker der? Skriv formlen i F6.",{"$nulls":3},"\"?\"",null,"Hvad sker der? Skriv formlen i M6."]
[null,"maskine 1",null,null,"=C3+…","=C3+3",null,"maskine 2",null,null,"=I3…","=I7-1"]
[null,null,"\"?\"",{"$nulls":5},"\"?\""]
[null,null,"\"?\"",{"$nulls":5},"\"?\""]
[]
[null,null,{"$f":"C3+3","v":10},{"$nulls":5},{"$f":"I3-1","v":6}]
[]
[]
[]
[null,null,7,{"$nulls":5},7]
[]
[null,null,"\"?\"",null,"Hvad sker der? Skriv formlen i F17.",{"$nulls":3},"\"?\"",null,"Hvad sker der? Skriv formlen i M17."]
[null,"maskine 3",null,null,"=C14…","=C14*3",null,"maskine 4",null,null,"=I14…","=I14/4"]
[null,null,"\"?\"",{"$nulls":5},"\"?\""]
[null,null,"\"?\"",{"$nulls":5},"\"?\""]
[]
[null,null,{"$f":"C14*3","v":21},{"$nulls":5},{"$f":"I14/4","v":1.75}]
[]
[]
[]
["SLUT"]

{"sheet":"Talmaskiner 2","index":2,"n_rows":34,"n_cols":11,"rows_kept":34,"merged":[[5,1,5,3],[16,1,16,3]]}
[null,"Talmaskiner 2."]
[]
[]
[]
[null,null,"\"?\"",null,"Dit forslag (skriv formlen i celle F6). \"=C3…………"]
[null,"maskine 5"]
[null,null,"\"?\"",null,"Kan du få samme resultat som i C10?"]
[null,null,"\"?\""]
[]
[null,null,{"$f":"C3+4+1/4","v":4.25},{"$nulls":3},"GRØN: FINT."]
[{"$nulls":6},"RØD: PRØV IGEN."]
[]
[]
[]
[]
[null,null,"\"?\"",{"$nulls":7},"Lav din"]
[null,"maskine 6",{"$nulls":8},"hemmelige"]
[null,null,"\"?\"",{"$nulls":7},"formel her."]
[null,null,"\"?\"",{"$nulls":7},"Husk at starte"]
[{"$nulls":10},"med =C14…"]
[null,null,{"$f":"K21","v":-4.25},{"$nulls":7},{"$f":"C14-4-1/4","v":-4.25}]
[]
[]
[]
[]
[]
[{"$nulls":10},"Lav din"]
[null,null,"\"?\"",{"$nulls":7},"hemmelige"]
[{"$nulls":10},"formel her."]
[{"$nulls":10},"Husk at starte"]
[{"$nulls":10},"med =C25…"]
[null,null,{"$f":"K32","v":0},{"$nulls":7},{"$f":"C25*C25-C25","v":0}]
[]
["SLUT"]

{"sheet":"Talmaskiner 3","index":3,"n_rows":34,"n_cols":16,"rows_kept":34,"merged":[[13,12,13,13],[13,15,13,16],[17,12,17,13],[18,12,18,13],[19,12,19,13],[20,12,20,13],[21,12,21,13],[24,12,24,13],[25,12,25,13],[26,12,26,13],[27,12,27,13],[28,12,28,13],[29,12,29,13],[30,12,30,13],[31,12,31,13]]}
[null,"Talmaskiner 3."]
[]
[null,null,5]
[null,null,8]
[null,null,"-"]
[null,null,"*"]
[]
[null,null,"Find tallet 15"]
[null,null,"Formel",null,null,"GRØN: FINT."]
[{"$nulls":5},"RØD: Prøv igen."]
[]
[]
[null,null,"Skriv regningsarterne, så regnestykkerne passer."]
[null,"Brug kun","Fx",{"$nulls":9},"Sådan skal formlen se ud.",null,null,"Her skriver du formlen."]
[null,"- og *",5,"-",5,"-",5,"*",5,"=",{"$f":"P15","v":-25},null,"=5-5-5*5",null,"=",{"$f":"5-5-5*5","v":-25}]
[null,"+ og *",5,"+",5,"+",5,"*",5,"=",{"$f":"P16","v":35},null,"=5+5+5*5",null,"=",{"$f":"5+5+5*5","v":35}]
[]
[null,"- og *",5,"*",5,"?",5,"?",5,"=",0,null,"=?????",null,"="]
[null,"- og *",5,"?",5,"-",5,"?",5,"=",15,null,"=?????",null,"="]
[null,"- og *",5,"?",5,"?",5,"*",5,"=",-120,null,"=?????",null,"="]
[null,"- og *",5,"*",5,"?",5,"?",5,"=",120,null,"=?????",null,"="]
[null,"- og *",5,"?",5,"*",5,"?",5,"=",-25,null,"=?????",null,"="]
[]
[null,"Opfind nye opgaver. Bestem de to regningsarter og et tal."]
[{"$nulls":3},"?",null,"?",null,"?",null,"=",null,null,"=?????",null,"="]
[{"$nulls":3},"?",null,"?",null,"?",null,"=",null,null,"=?????",null,"="]
[{"$nulls":3},"?",null,"?",null,"?",null,"=",null,null,"=?????",null,"="]
[{"$nulls":3},"?",null,"?",null,"?",null,"=",null,null,"=?????",null,"="]
[{"$nulls":3},"?",null,"?",null,"?",null,"=",null,null,"=?????",null,"="]
[{"$nulls":3},"?",null,"?",null,"?",null,"=",null,null,"=?????",null,"="]
[{"$nulls":3},"?",null,"?",null,"?",null,"=",null,null,"=?????",null,"="]
[{"$nulls":3},"?",null,"?",null,"?",null,"=",null,null,"=?????",null,"="]
[]
["SLUT"]

{"sheet":"Hjælp - Talmaskiner 3","index":4,"n_rows":24,"n_cols":16,"rows_kept":24,"merged":[[13,12,13,13],[13,15,13,16],[17,12,17,13],[18,12,18,13],[19,12,19,13],[20,12,20,13],[21,12,21,13]]}
[null,"Hjælp - Talmaskiner 3."]
[]
[null,null,5]
[null,null,8]
[null,null,"-"]
[null,null,"*"]
[]
[null,null,"Find tallet 15",{"$nulls":7},"Med syv tal.",null,null,"Med fire tal.",null,"Med tre tal."]
[null,null,"Formel",null,{"$f":"8*8-5*5-8-8-8","v":15},"GRØN: FINT.",{"$nulls":4},"=8*8-5*5-8-8-8",null,null,"=5*5-5-5",null,"=(8-5)*5"]
[{"$nulls":5},"RØD: Prøv igen."]
[]
[]
[null,null,"Skriv regningsarterne, så regnestykkerne passer."]
[null,"Brug kun","Fx",{"$nulls":9},"Sådan skal formlen se ud.",null,null,"Her skriver du formlen."]
[null,"- og *",5,"-",5,"-",5,"*",5,"=",-25,null,"=5-5-5*5",null,"=",{"$f":"5-5-5*5","v":-25}]
[null,"+ og *",5,"+",5,"+",5,"*",5,"=",35,null,"=5+5+5*5",null,"=",{"$f":"5+5+5*5","v":35}]
[null,null,"Der kan være andre løsninger end dem, du kan se her."]
[null,"- og *",5,"*",5,"-",5,"*",5,"=",0,null,"=5*5-5*5",null,"=",{"$f":"5*5-5*5","v":0}]
[null,"- og *",5,"*",5,"-",5,"-",5,"=",15,null,"=5*5-5-5",null,"=",{"$f":"5*5-5-5","v":15}]
[null,"- og *",5,"-",5,"*",5,"*",5,"=",-120,null,"=5-5*5*5",null,"=",{"$f":"5-5*5*5","v":-120}]
[null,"- og *",5,"*",5,"*",5,"-",5,"=",120,null,"=5*5*5-5",null,"=",{"$f":"5*5*5-5","v":120}]
[null,"- og *",5,"-",5,"*",5,"-",5,"=",-25,null,"=5-5*5-5",null,"=",{"$f":"5-5*5-5","v":-25}]
[]
["SLUT"]

{"sheet":"Ekstra","index":5,"n_rows":26,"n_cols":13,"rows_kept":26,"merged":[[2,10,3,10]]}
[null,"Ekstra og meget svært."]
[]
[null,"HUSK AT cellen i kolonne B skal vær en del af formlen.",{"$nulls":8},"GÆT FORMLEN HER og tjek med cellen i kolonne D."]
[null,"Skriv et tal.   Prøv med flere.","Skjult formel giver","Resultat",null,"Hvor mange paranteser er brugt.","Hvilke tal er brugt.","Antal tal udover kolonne B-tallet.","Hvilke regningsarter er brugt?"]
[null,7,"=7-4*B5+1",{"$f":"7-4*B5+1","v":-20},null,0,"1, 4, 7",3,"+, *, -",null,"eksempel - se C5"]
[null,-10,"=B6-(7-1)*4",{"$f":"B6-(7-1)*4","v":-34},null,2,"1, 4, 7",3,"-. *",null,"eksempel - se C6"]
[null,7,{"$f":"7/B7+B7+1","v":9},{"$f":"C7","v":9},null,0,"1, 7",2,"+. /",{"$nulls":3},"Prøv med 0 i B7"]
[null,-1,{"$f":"(B8+1)*7","v":0},{"$f":"C8","v":0},null,2,"1, 7",2,"+, *",{"$nulls":3},"Få din lærer til at"]
[null,6,{"$f":"8-(B9-5)-5","v":2},{"$f":"C9","v":2},null,2,"5, 8",3,"+. -",{"$nulls":3},"forklare, hvis du"]
[{"$nulls":12},"ikke selv kan…"]
[null,"Nu er det din tur. Arbejd sammen med din makker."]
[null,"Prøv med et tal","Din hemmelige formel","Resul-tat",null,"Paranteser, du har brugt","Tal, du har brugt","Antal tal, du har brugt","Regningsarter, du har brugt",null,"Gæt formlen her:"]
[{"$nulls":3},{"$f":"C13","v":{"v":0,"d":"0.00"}}]
[{"$nulls":3},{"v":0,"d":"0.00"}]
[{"$nulls":3},{"v":0,"d":"0.00"}]
[{"$nulls":3},{"v":0,"d":"0.00"}]
[{"$nulls":3},{"v":0,"d":"0.00"}]
[{"$nulls":3},{"v":0,"d":"0.00"}]
[{"$nulls":3},{"v":0,"d":"0.00"}]
[{"$nulls":3},{"v":0,"d":"0.00"}]
[{"$nulls":3},{"v":0,"d":"0.00"}]
[{"$nulls":3},{"v":0,"d":"0.00"}]
[{"$nulls":3},{"v":0,"d":"0.00"}]
[]
[]
["SLUT på Ekstra"]

{"sheet":"ORDBOG","index":6,"n_rows":91,"n_cols":10,"rows_kept":91}
[5,null,"ORDBOG er skrivebeskyttet af tekniske årsager - Michael Scheuer","Klik på linkene i kolonne F:J eller scroll med musen nedover siden."]
[null,null,"ORDBOG"]
[]
[null,null,"stikord","Bemærk: Anførselstegn \"tekst\" bruges i denne ordbog kun til at forklare, hvad der skal skrives i en celle. Anførselstegnene skal altså ikke skrives med! De blå ord kan du finde som stikord. Du kan også finde stikordene i kolonne F, G og H. Et klik på ordet vil bringe dig til forklaringen...",null,"stikord"]
[]
[null,null,"-","regnetegn for subtraktion (minus) (trække fra)",null,"sub-trak-tion"]
[null,null,"*","regnetegn for multiplikation (gange)",null,"multi-plika-tion"]
[null,null,"/","regnetegn for division (dividere)",null,"divi-sion"]
[null,null,"+","regnetegn for addition (sum) (lægge sammen)",null,"addi-tion"]
[null,null,"=","indledning til alle formler. Bruges også ved simpel sum, f.eks. \"=5,3+7,4\". Resultatet i formelcellen vil være 12,7"]
[null,null,"addition","Brug tasten \"+\" til regningsarten addition (plus)",null,"reg-nings-art","plus"]
[null,null,"alt","Tast. Bruges til særlige ting (for eksempel genvejstaster). Pas lidt på! "]
[null,null,"alt Gr","Tast. Bruges til særlige ting (det tredje tegn på nogle taster, for eksempel \"@\"). Pas lidt på! "]
[null,null,"Annuller fortryd","Knap. Hvis du har trykket på knappen Fortryd - og du så alligevel gerne vil bruge det…",null,"knap","fortryd"]
[null,null,"Autosum","Knap. Klik på en tom celle under de celler, du vil have lagt sammen og klik på knappen.                                                     Eller klik på en tom celle til højre for nogle celler, du vil have lagt sammen…",null,"celle"]
[null,null,"B3:D5","skrivemåde for alle 9 celler fra B3 til D5                                                     B3, B4, B5,                                                                        C3, C4, C5,                                                                            D3, D4, D5"]
[null,null,"celle","Hver lille firkant i regnearket er en celle. Cellen kan rumme TAL, FORMEL eller TEKST. Hvis du blander dem, bliver det opfattet som TEKST. Cellen opkaldes efter kolonnen og rækken, den er i. F.eks. står der ORDBOG i celle C2 og i krydset mellem kolonne B og række 3 er cellen B3 grøn. Celle B1 er den aktive celle.",null,"kolon-ne","række"]
[null,null,"ctrl","Tast. Bruges til særlige ting (for eksempel genvejstaster). Pas lidt på! "]
[null,null,"cursor","I Excel er musepilen ændret, så det liger et stort, hvidt plus-tegn. Når du skriver tekst, tal eller formel i en celle, bliver cursoren til en lodret, blinkende sort pind.",null,"tekst","tal","formel","celle","plus-tegn"]
[null,null,"decimaltal","Tal, der indeholder et komma. F.eks. 8,25 eller 0,746 eller 13,0. Decimalerne er cifrene efter kommaet."]
[null,null,"del","Tast. Delete eller del sletter en celles indhold. Brug den, hvis du fortryder en indtastning bagefter",null,"delete"]
[null,null,"dele","Brug tasten \"/\" til regningsarten division (dividere)",null,"reg-nings-art"]
[null,null,"delete","Tast. Del eller delete sletter en celles indhold. Brug den, hvis du fortryder en indtastning bagefter",null,"del"]
[null,null,"diagram - guiden diagram","Med guiden diagram kan du lave forskellige diagrammer, f.eks. søjle- eller lagkagediagrammer. Der er mange indstillingsmuligheder, som du må undersøge nærmere selv."]
[null,null,"dialogboks","På skærmen åbner en mindre ramme (et vindue), hvor du bliver bedt om flere oplysninger. Det sker f.eks., når du klikker på knappen Åbn. Så hjælper dialogboksen dig med at finde det regneark, du vil åbne.",null,"åbn","regne-ark"]
[null,null,"division","Brug tasten \"/\" til regningsarten division (dele)",null,"reg-nings-art"]
[null,null,"dobbeltklik","To klik på venstre musetast hurtigt efter hinanden.",null,"klik"]
[null,null,"enter","Tast. Afslutter indtastning i en celle. Den kan også hedde Return",null,"return"]
[null,null,"esc","Tast. Brug den hvis du fortryder en indtastning - mens du er i gang. Esc betyder Escape: Flygt!"]
[null,null,"Excel Hjælp","Knap. Her er der meget hjælp at hente. Men noget af det er svært at læse og svært at forstå - og så er det jo ikke til megen hjælp!"]
[null,null,"F2","Funktionstast på tastaturet: Bruges, hvis du skal rette i indholdet af en celle.",null,"celle"]
[null,null,"faneblad","Nede i den første grå linie under cellerne kan du klikke på forskellige regneark. I et helt nyt regneark er der normalt tre ark, og de kaldes Ark 1, Ark 2 og Ark 3. På billedet er der to faneblade: Øvelse 1 og ORDBOG",null,"klik","regne-ark"]
[null,null,"Flyt","Knap. Du kan flytte indholdet fra én celle til en anden. Se klip, kopier og sæt ind",null,"klip","kopier","sæt ind"]
[null,null,"formatér","Formatér celle: Højreklik på en celle og du kan vælge forskellige måder, cellen kan se ud på. Skal det være en tekstcelle? en talcelle? Hvor mange decimaler? Skal indholdet stå til venstre, i midten eller til højre? … Der er mange muligheder",null,"højre-klik","celle"]
[null,null,"formel","Du kan f.eks. lægge tal fra forskellige celler sammen i en ny celle. I den nye celle skriver du formlen. En formel begynder altid med \"=\", f.eks. summen af tal i cellerne B4+B5+B6+B7 skal lægges sammen i celle B8. I celle B8 skriver du: \"=SUM(B4:B7)\"      Se tegning ved formellinie",null,"formel-linie"]
[null,null,"formellinie","I den nederste grå linie lige over kolonnerne, kan du se indholdet af en celle. Hvis cellen rummer en formel, kan du se formlen i denne linie - i cellen vil der jo nok stå et tal. Lige til venstre for formellinien er der et lighedstegn. På billedet er celle B8 aktiv og indholdet er en formel: =SUM(B4:B7)",null,"celle","formel","tal"]
[null,null,"Fortryd","Knap. Fortryd seneste indtastning. Knappen kan huske mange indtastninger! Se også Annuller Fortryd, del eller delete samt esc"]
[null,null,"gange","Brug tasten \"*\" til regningsarten multiplikation",null,"reg-nings-art","multi-plika-tion"]
[null,null,"Gem","Knap. Gemmer dit regneark på disk. Hvis det er et nyt regneark, bliver du bedt om et navn til regnearket. Hvis det er et regneark, du har hentet fra disken og arbejdet videre med, overskrives det oprindelige. Gem dit arbejde jævnligt.",null,"regne-ark"]
[null,null,"Guiden Diagram","Knap. Guiden Diagram hjælper dig med at lave diagrammer. Der er en øvelse i brug af denne knap i Fordybelseshæfte 5"]
[null,null,"Hent ark","Knap. Klik på den, når du vil hente et regneark.",null,"klik","regne-ark"]
[null,null,"højreklik","Et klik på højre musetast",null,"klik"]
[null,null,"højrestille","Al tekst eller tal passer til en lodret linie i højre side af cellen.",null,"tekst","tal","celle"]
[null,null,"ikon","Et lille billede - se knap",null,"knap"]
[null,null,"indhold","Se celle",null,"celle"]
[null,null,"klik","Et tryk på en musetast, hvor du slipper tasten hurtigt igen.",null,"tryk"]
[null,null,"Klip","Knap. Du kan flytte indholdet fra én celle til en anden. Se også kopier og sæt ind. Gælder for tal og tekst. Pas på med formler!",null,"flytte","kopier","sæt ind"]
[null,null,"knap","Den eller de linier under titellinien, der har små knapper eller ikoner, man kan klikke på med venstreklik. Hvis du holder musen stille over et ikon, kommer der en forklarende tekst. Den forsvinder ret hurtigt igen…",null,"titel-linie","klik","ven-stre-klik"]
[null,null,"kolonne","Er en samling af celler, der står ovenpå hinanden. Kolonne C rummer alle stikordene i dette leksikon. Kolonne B er gul og lidt smallere end de andre kolonner. Se også række",null,"celle","række"]
[null,null,"kopier","Knap. Virker næsten som klip. Men originalerne bliver liggende - se også klip og sæt ind",null,"klip","sæt ind"]
[null,null,"linie","Er det samme som række",null,"række"]
[null,null,"markér","Du kan markere flere celler ved at holde venstre musetast ned og trække pilen afsted. Du kan også markere flere celler ved at holde SHIFT-tasten nede og trykke på piletasterne på tastaturet. Hvis du vil markere en hel kolonne, skal du klikke med venstre musetast på kolonnens navn, f.eks. klik på \"C\", hvis du vil markere hele kolonne C.",null,"SHIFT","tryk","pile-tast","kolon-ne","klik"]
[null,null,"menu","En slags spiseseddel: Overblik over hvad du kan vælge. Hvis du klikker på \"Filer\" i menulinien på skærmen, får du en menu med valg. Højreklikker du på en celle, et rækketal eller et kolonnebogstav, får du helt andre menuer.",null,"menu-linie","højre-klik"]
[null,null,"menu med højreklik","Klikker du på højre musetast, kommer der en særlig menu frem. Den passer til det sted, du har musen på skærmen. Der er altså forskel på de højremenuer, du kan få frem forskellige steder på skærmen."]
[null,null,"menulinie","Den øverste grå linie lige under titellinien har nogle tekster: Filer / Rediger / Vis / … Venstreklik på et ord åbner en menu med en masse muligheder.",null,"titel-linie","ven-stre-klik"]
[null,null,"minus","Brug tasten \"-\" til regningsarten subtraktion",null,"reg-nings-art","\"-\"","sub-trak-tion"]
[null,null,"multipli-kation","Brug tasten \"*\" til regningsarten multiplikation (gange)",null,"reg-nings-art","\"*\"","gange"]
[null,null,"musepil","I Excel er musepilen ændret, så det liger et stort, hvidt plus-tegn. Se også cursor.",null,"cursor"]
[null,null,"numerisk tastatur taltastatur","taltasterne til højre på dit tastatur. Hvis de ikke giver tal, når du trykker, skal du trykke en enkelt gang på tasten \"Num Lock\""]
[null,null,"Ny","Knap. Hvis du vil åbne et nyt og helt tomt regneark, hvor du selv kan bestemme.",null,"regne-ark"]
[null,null,"piletaster","Du kan spare på \"musefingrene\" ved at bruge piletasterne på dit tastatur."]
[null,null,"plus","Brug tasten \"+\" til regningsarten addition",null,"reg-nings-art","\"+\"","addi-tion"]
[null,null,"plus-tegn","I Excel er musepilen ændret, så det ligner et stort, hvidt plus-tegn. Se også cursor.",null,"cursor"]
[null,null,"regneark","En samling af små celler, der kan indeholde tal, tekst eller formel. Et regneark kan være opdelt i flere regneark (lag). Typisk er Excel indstillet til at have tre lag, nemlig Ark 1, Ark 2 og Ark 3. Microsoft kalder samlingen for en projektmappe og de tre ark for regneark. Vi kalder det hele for regneark! Se også faneblad",null,"celle","tal","tekst","formel","fane-blad"]
[null,null,"regnings-arter","Se de fire regnetegn \"+\", \"-\", \"*\" og \"/\"",null,"addi-tion (+)","sub-trak-tion (-)","multi-plika-tion (*)","divi-sion (/)"]
[null,null,"return","tasten hedder også Enter - \"den med den knækkede pil\"",null,"enter"]
[null,null,"række","Er en samling celler ved siden af hinanden. Række 3 er orange og lidt tyndere end de andre rækker i denne ordbog. På billedet er række 2 markeret. Se også kolonne",null,"celle","kolon-ne"]
[null,null,"SHIFT","Tast. Hold den nede, hvis du vil skrive et stort bogstav eller symbolerne over tallene (f.eks. \"%\", eller paranteser)    SHIFT+a giver bogstavet A                                            Står du i celle D4, trykker SHIFT og klikker på K12, mærkes cellerne D4:K12 op (bliver blå).                                     Du kan også bruge piletaster for at nå hen til celle K12...   Se også CTRL, ALT og AltGr",null,"CTRL","ALT","AltGr"]
[null,null,"Sortér faldende","Knap. Hvis du vil ordne navnene i alfabetisk rækkefølge eller vise tallene i størrelsesorden. Du kan mærke flere kolonner og rækker op samtidig, Så sorteres på den venstre kolonne og resten følger med! Se også Sorter stigende.",null,"sortér stig-ende"]
[null,null,"Sortér stigende","Knap. Brugt til denne ordbog! Stigende betyder at rækkefølgen BCA bliver til ABC - faldende giver CBA. Stigende betyder at cifrene 231 bliver til 123 - faldende giver 321. Se også Sorter faldende.",null,"sortér fald-ende"]
[null,null,"Stavekontrol","Knap. Knappen kan lave stavekontrol på en celle eller hele arket. Du bestemmer selv i en dialogboks.",null,"dialog-boks"]
[null,null,"subtraktion","Brug tasten \"-\" til regningsarten subtraktion (minus)",null,"reg-nings-art","\"-\"","sub-trak-tion"]
[null,null,"SUM","formel - bruges sammen med \"=\", f.eks. =SUM(B3:D5) er summen af tal i cellerne B3, B4, B5, C3, C4, C5, D3, D4, D5 - se også autosum",null,"B3:D5","auto-sum"]
[null,null,"Sæt ind","Knap. Hvis du har brugt knappen Klip eller knappen Kopier, kan du bruge denne knap til at sætte udklippet ind med igen. Bruges f.eks., hvis du vil kopiere en talrække til et andet sted i regnearket.",null,"klip","kopiér","regne-ark"]
[null,null,"søjle","Er det samme som kolonne.",null,"kolon-ne"]
[null,null,"tal","Skriver du et tal i en celle, højrestilles tallet automatisk. Hvis du vil have decimaler, skal du indstille cellen - se decimal",null,"celle","højre-stil","deci-mal"]
[null,null,"tast","En af plasticdimserne på tastaturet ELLER et tryk på en tast. \"Tast Esc\" betyder: Tryk på den plasticdims, der har teksten Esc skrevet på."]
[null,null,"tekst","Skriver du tekst i en celle, venstrestilles den. Skriver du \"8,25 kr\" opfattes det som tekst selvom der er tal med. Det er \"kr\" der gør det til tekst.",null,"tekst","celle","ven-stre-stil"]
[null,null,"titellinie","Øverste linie i vinduet. Der står \"Microsoft Excel\" og navnet på det regneark, du har åbnet - f.eks. \"Jakobs tabeller.xls\" eller \"4 Øvelse 1.xls\"",null,"regne-ark"]
[null,null,"tryk","Et klik på en musetast, hvor du holder tasten nede. Når du flytter musen med et tryk, vil der ske noget: Celler mærkes op eller punkter/vinduer flyttes…  Der er forskel på højre og venstre musetast - både med klik og med tryk.",null,"klik","tryk"]
[null,null,"Udskriv","Knap. Vær varsom med at klikke på denne knap. Ofte er er ingen grund til at skrive dit regneark ud. Spørg altid din lærer, om det er i orden at skrive ud på printer (tænk på alt det skov, der bliver fældet!). Se også Vis udskrift…         Hvis du vil styre printet, skal du benytte CTRL+p",null,"vis ud-skrift","CTRL"]
[null,null,"venstreklik","Et klik på venstre musetast",null,"klik"]
[null,null,"venstrestille","Al tekst eller tal passer til en lodret linie i venstre side af cellen. Alle tekster i dette leksikon er venstrestillede.",null,"tekst","tal","celle"]
[null,null,"vindue","Se dialogboks",null,"dialog-boks"]
[null,null,"Vis udskrift","Knap. I stedet for at skrive ud på printer, er det mange gange nok at kunne se en pæn udskrift PÅ SKÆRMEN. Og det bruger du denne knap til!"]
[null,null,"værktøjs-linie","En samling af knapper med forskellige muligheder",null,"knap"]
[null,null,"Ændre størrelse","Tryk venstre musetast ned på et af de 8 sorte felter og træk. Når du slipper musen, har figuren fået nye mål.    Hvis du vil bevare forholdet mellem længde og højde, skal du holde SHIFT-tasten nede, mens du trækker i et af de 4 sorte hjørner."]
[null,null,"Åbn","Knap. Hvis du skal hente et regneark, der ligger på en harddisk eller lignende, klikker du på denne kan. Der kommer en dialogboks, hvor du kan søge og vælge regneark.",null,"dialog-boks"]
[null,null,"CTRL","Tast. Hold den nede, hvis du vil benytte særlige funktioner    CTRL+a mærker alle celler op i regnearket.              CTRL+c kopierer det opmærkede                                            CTRL+v sætter det kopierede ind                             CTRL+s gemmer dit arbejde                                  CTRL+p bruges til printerudskrift                                   Der er mange andre muligheder med CTRL-tasten                                   Se også SHIFT, ALT og AltGr",null,"SHIFT","ALT","AltGr"]
[null,null,"ALT","Tast. Et tryk på tasten kan efterfølges af et andet tastetryk. ALT-i-i (ALT efterfulgt af et tryk på i efterfulgt af et tryk på i): ALT åbner menulinien - i åbner \"Indsæt\" og i åbner \"Diagram\". ALT bruges altså sammen med de understregede bogstaver i menuer.                                ALT+F4 lukker det aktive vindue og program!                 Der er mange andre muligheder med ALT-tasten                                   Se også SHIFT, CTRL og AltGr",null,"SHIFT","CTRL","AltGr"]
[null,null,"AltGr","Tast. Hold tasten nede, hvis du vil benytte tredje mulighed på en tast…                                                                 AltGr+2 giver @                                                           AltGr+4 giver $                                                        AltGr+9 giver ]                                                            Der er flere kombinationer.                                            Se også SHIFT, CTRL og ALT",null,"SHIFT","CTRL","ALT"]